[Event "*** SCC Grand Prix: Titled Tuesday Blitz"]
[Site "Chess.com"]
[Date "2020.08.04"]
[Round "4"]
[White "BillCoe"]
[Black "tptagain"]
[Result "0-1"]
[WhiteElo "2139"]
[BlackElo "2943"]
[TimeControl "180+1"]
[EndTime "14:23:40 PDT"]
[Termination "tptagain won on time"]

1. e4 {[%clk 0:03:00.9]} 1... c5 {[%clk 0:02:59.5]} 2. Nf3 {[%clk 0:03:01]} 2...
Nc6 {[%clk 0:02:59.6]} 3. Bb5 {[%clk 0:03:00.5]} 3... Na5 {[%clk 0:02:58.7]} 4.
c3 {[%clk 0:02:59.9]} 4... a6 {[%clk 0:02:57.7]} 5. Ba4 {[%clk 0:02:59.7]} 5...
b5 {[%clk 0:02:57.4]} 6. Bc2 {[%clk 0:03:00.2]} 6... g6 {[%clk 0:02:53.4]} 7. d4
{[%clk 0:03:00.6]} 7... cxd4 {[%clk 0:02:53.3]} 8. cxd4 {[%clk 0:03:01.5]} 8...
Bg7 {[%clk 0:02:53.3]} 9. O-O {[%clk 0:03:01]} 9... Nf6 {[%clk 0:02:53]} 10. h3
{[%clk 0:03:01]} 10... O-O {[%clk 0:02:52.4]} 11. Nc3 {[%clk 0:02:59.2]} 11...
Bb7 {[%clk 0:02:51.6]} 12. e5 {[%clk 0:02:55.9]} 12... Nd5 {[%clk 0:02:51.3]}
13. Re1 {[%clk 0:02:45.1]} 13... Rc8 {[%clk 0:02:49.2]} 14. Nxd5 {[%clk
0:02:45.2]} 14... Bxd5 {[%clk 0:02:48.9]} 15. Be4 {[%clk 0:02:44.6]} 15... Bxe4
{[%clk 0:02:44]} 16. Rxe4 {[%clk 0:02:45.5]} 16... d6 {[%clk 0:02:38.9]} 17. e6
{[%clk 0:02:39.9]} 17... f5 {[%clk 0:02:38.9]} 18. Re2 {[%clk 0:02:35.2]} 18...
Nc6 {[%clk 0:02:36.6]} 19. d5 {[%clk 0:02:30.8]} 19... Ne5 {[%clk 0:02:25.2]}
20. Nd4 {[%clk 0:02:18]} 20... f4 {[%clk 0:02:23.4]} 21. Re4 {[%clk 0:02:10.3]}
21... f3 {[%clk 0:02:19.7]} 22. g3 {[%clk 0:02:07.3]} 22... Qb6 {[%clk
0:02:11.8]} 23. Bf4 {[%clk 0:02:05.1]} 23... Rc4 {[%clk 0:01:41.6]} 24. b3
{[%clk 0:01:57.5]} 24... Rxd4 {[%clk 0:01:41.7]} 25. Qxd4 {[%clk 0:01:37.5]}
25... Qxd4 {[%clk 0:01:40.1]} 26. Rxd4 {[%clk 0:01:36.6]} 26... Nc6 {[%clk
0:00:38.2]} 27. Rdd1 {[%clk 0:01:33.1]} 27... Bxa1 {[%clk 0:00:36.4]} 28. Rxa1
{[%clk 0:01:34]} 28... Nb4 {[%clk 0:00:35.1]} 29. Rd1 {[%clk 0:01:33.1]} 29...
Rf5 {[%clk 0:00:25.6]} 30. a3 {[%clk 0:01:16]} 30... Nxd5 {[%clk 0:00:25.4]} 31.
Bh6 {[%clk 0:00:50.2]} 31... Nc7 {[%clk 0:00:25.3]} 32. Rc1 {[%clk 0:00:43.2]}
32... Nxe6 {[%clk 0:00:25]} 33. Rc8+ {[%clk 0:00:43.6]} 33... Kf7 {[%clk
0:00:25.2]} 34. Ra8 {[%clk 0:00:41.2]} 34... g5 {[%clk 0:00:23.6]} 35. h4 {[%clk
0:00:36.8]} 35... gxh4 {[%clk 0:00:23.8]} 36. gxh4 {[%clk 0:00:36.6]} 36... Rh5
{[%clk 0:00:20.7]} 37. Be3 {[%clk 0:00:34.9]} 37... d5 {[%clk 0:00:21.2]} 38.
Rxa6 {[%clk 0:00:34.7]} 38... d4 {[%clk 0:00:21.6]} 39. Bd2 {[%clk 0:00:33.8]}
39... Re5 {[%clk 0:00:21.4]} 40. a4 {[%clk 0:00:27.9]} 40... Re2 {[%clk
0:00:20.7]} 41. Bb4 {[%clk 0:00:27.5]} 41... bxa4 {[%clk 0:00:20.9]} 42. bxa4
{[%clk 0:00:25.9]} 42... Rb2 {[%clk 0:00:21.1]} 43. Ba3 {[%clk 0:00:22.7]} 43...
Rb3 {[%clk 0:00:21.3]} 44. Bc1 {[%clk 0:00:12.2]} 44... Rb1 {[%clk 0:00:21.3]}
45. Rc6 {[%clk 0:00:12.9]} 45... Nf4 {[%clk 0:00:20.9]} 46. Kh2 {[%clk
0:00:12.6]} 46... Nd3 {[%clk 0:00:20.8]} 47. Bg5 {[%clk 0:00:10.2]} 47... Nxf2
{[%clk 0:00:20.3]} 48. Rc7 {[%clk 0:00:09.9]} 48... Ng4+ {[%clk 0:00:18.1]} 49.
Kg3 {[%clk 0:00:10]} 49... f2 {[%clk 0:00:18.4]} 50. Rxe7+ {[%clk 0:00:08.9]}
50... Kf8 {[%clk 0:00:18.8]} 0-1

[Event "*** SCC Grand Prix: Titled Tuesday Blitz"]
[Site "Chess.com"]
[Date "2020.08.04"]
[Round "4"]
[White "Gareth-Bale11"]
[Black "hansen"]
[Result "0-1"]
[WhiteElo "2770"]
[BlackElo "3000"]
[TimeControl "180+1"]
[EndTime "14:23:49 PDT"]
[Termination "hansen won by checkmate"]

1. d4 {[%clk 0:03:00.7]} 1... Nf6 {[%clk 0:02:54.8]} 2. c4 {[%clk 0:03:00.4]}
2... e6 {[%clk 0:02:45.6]} 3. Nf3 {[%clk 0:02:59.5]} 3... b6 {[%clk 0:02:44.1]}
4. Nc3 {[%clk 0:02:56.8]} 4... Bb4 {[%clk 0:02:42.8]} 5. Bg5 {[%clk 0:02:56.3]}
5... Bb7 {[%clk 0:02:41.1]} 6. e3 {[%clk 0:02:55.8]} 6... h6 {[%clk 0:02:41.1]}
7. Bh4 {[%clk 0:02:55.7]} 7... g5 {[%clk 0:02:41.4]} 8. Bg3 {[%clk 0:02:56]}
8... Ne4 {[%clk 0:02:42]} 9. Nd2 {[%clk 0:02:43.5]} 9... Bxc3 {[%clk 0:02:19.6]}
10. bxc3 {[%clk 0:02:43]} 10... Nxg3 {[%clk 0:02:15.1]} 11. hxg3 {[%clk
0:02:43.9]} 11... d6 {[%clk 0:02:15.2]} 12. Rh2 {[%clk 0:02:38.5]} 12... Nd7
{[%clk 0:02:13.3]} 13. Be2 {[%clk 0:02:38.3]} 13... Nf6 {[%clk 0:02:05.1]} 14.
a4 {[%clk 0:02:25.8]} 14... e5 {[%clk 0:02:00.7]} 15. a5 {[%clk 0:02:21.8]}
15... Kf8 {[%clk 0:01:51.3]} 16. Qc2 {[%clk 0:02:13.1]} 16... Kg7 {[%clk
0:01:50.5]} 17. g4 {[%clk 0:02:02.3]} 17... Qe7 {[%clk 0:01:18]} 18. Nf1 {[%clk
0:01:33.5]} 18... Be4 {[%clk 0:01:17.9]} 19. Qc1 {[%clk 0:01:24.7]} 19... c5
{[%clk 0:01:13]} 20. d5 {[%clk 0:01:21.5]} 20... bxa5 {[%clk 0:01:11.5]} 21. Ng3
{[%clk 0:01:16.5]} 21... Bg6 {[%clk 0:01:11.5]} 22. f3 {[%clk 0:01:03.4]} 22...
h5 {[%clk 0:01:04.2]} 23. e4 {[%clk 0:01:02.8]} 23... h4 {[%clk 0:00:44.9]} 24.
Nf1 {[%clk 0:00:52.5]} 24... Nd7 {[%clk 0:00:43.3]} 25. Rxa5 {[%clk 0:00:50.3]}
25... Rhb8 {[%clk 0:00:41.5]} 26. Ne3 {[%clk 0:00:48.7]} 26... f6 {[%clk
0:00:39.8]} 27. Kf2 {[%clk 0:00:47.8]} 27... Rb7 {[%clk 0:00:39.3]} 28. Rh1
{[%clk 0:00:44]} 28... a6 {[%clk 0:00:33.6]} 29. Qa3 {[%clk 0:00:43.4]} 29...
Rb6 {[%clk 0:00:33.3]} 30. Ra1 {[%clk 0:00:43.2]} 30... Qd8 {[%clk 0:00:31.9]}
31. Bd1 {[%clk 0:00:39.7]} 31... h3 {[%clk 0:00:20.5]} 32. gxh3 {[%clk
0:00:31.4]} 32... Rab8 {[%clk 0:00:20.5]} 33. Be2 {[%clk 0:00:21.9]} 33... Qh8
{[%clk 0:00:19.7]} 34. Kg2 {[%clk 0:00:21.9]} 34... Qh4 {[%clk 0:00:16.6]} 35.
Qc1 {[%clk 0:00:20.3]} 35... Rh8 {[%clk 0:00:10.9]} 36. Qh1 {[%clk 0:00:16.3]}
36... Ra8 {[%clk 0:00:06.3]} 37. R1a2 {[%clk 0:00:15]} 37... Kf8 {[%clk
0:00:05.8]} 38. Qg1 {[%clk 0:00:12.7]} 38... Ke8 {[%clk 0:00:04.2]} 39. Qf2
{[%clk 0:00:13]} 39... Qh8 {[%clk 0:00:04.1]} 40. Bd1 {[%clk 0:00:12.5]} 40...
Nf8 {[%clk 0:00:03.6]} 41. Ba4+ {[%clk 0:00:12.6]} 41... Kd8 {[%clk 0:00:04]}
42. Bc6 {[%clk 0:00:12.9]} 42... Ra7 {[%clk 0:00:04.6]} 43. Nc2 {[%clk
0:00:12.2]} 43... Be8 {[%clk 0:00:03.5]} 44. Rxc5 {[%clk 0:00:08.2]} 44... Ng6
{[%clk 0:00:03.2]} 45. Bxe8 {[%clk 0:00:07.5]} 45... Nf4+ {[%clk 0:00:03.6]} 46.
Kh1 {[%clk 0:00:03.3]} 46... Qxh3+ {[%clk 0:00:03.1]} 47. Kg1 {[%clk 0:00:03.8]}
47... Rb1+ {[%clk 0:00:03.4]} 48. Ne1 {[%clk 0:00:03.4]} 48... Rh7 {[%clk
0:00:02.7]} 49. Rc8+ {[%clk 0:00:03]} 49... Kxc8 {[%clk 0:00:03.2]} 50. Bh5
{[%clk 0:00:03.2]} 50... Rxh5 {[%clk 0:00:02]} 51. gxh5 {[%clk 0:00:03.3]} 51...
Qxh5 {[%clk 0:00:02.4]} 52. Qa7 {[%clk 0:00:01.6]} 52... Rxe1+ {[%clk
0:00:01.2]} 53. Kf2 {[%clk 0:00:02]} 53... Qh4# {[%clk 0:00:01.9]} 0-1

[Event "*** SCC Grand Prix: Titled Tuesday Blitz"]
[Site "Chess.com"]
[Date "2020.08.04"]
[Round "4"]
[White "grzechu96"]
[Black "ChessSwole"]
[Result "0-1"]
[WhiteElo "2666"]
[BlackElo "2383"]
[TimeControl "180+1"]
[EndTime "14:23:49 PDT"]
[Termination "ChessSwole won by checkmate"]

1. e4 {[%clk 0:03:00.9]} 1... c5 {[%clk 0:02:54.7]} 2. Nf3 {[%clk 0:02:59.3]}
2... e6 {[%clk 0:02:55.2]} 3. d4 {[%clk 0:02:59]} 3... cxd4 {[%clk 0:02:56.1]}
4. Nxd4 {[%clk 0:02:59.8]} 4... a6 {[%clk 0:02:56.4]} 5. Bd3 {[%clk 0:02:59]}
5... Bc5 {[%clk 0:02:52.9]} 6. Nb3 {[%clk 0:02:59.1]} 6... Ba7 {[%clk
0:02:53.5]} 7. O-O {[%clk 0:02:54.7]} 7... Nc6 {[%clk 0:02:53.5]} 8. Qe2 {[%clk
0:02:53.4]} 8... Nge7 {[%clk 0:02:53.7]} 9. Be3 {[%clk 0:02:53.8]} 9... Bxe3
{[%clk 0:02:53.5]} 10. Qxe3 {[%clk 0:02:54.7]} 10... d5 {[%clk 0:02:54]} 11.
N1d2 {[%clk 0:02:40.5]} 11... O-O {[%clk 0:02:51.4]} 12. Rad1 {[%clk 0:02:39.9]}
12... d4 {[%clk 0:02:48]} 13. Qg3 {[%clk 0:02:38.8]} 13... e5 {[%clk 0:02:35.9]}
14. Nf3 {[%clk 0:02:37.1]} 14... Ng6 {[%clk 0:02:35.2]} 15. c3 {[%clk 0:02:36]}
15... dxc3 {[%clk 0:02:32.2]} 16. bxc3 {[%clk 0:02:36.6]} 16... Qe7 {[%clk
0:02:30.9]} 17. Bc4 {[%clk 0:02:35.1]} 17... Be6 {[%clk 0:02:26.8]} 18. Bd5
{[%clk 0:02:22.9]} 18... f6 {[%clk 0:02:02.8]} 19. Nh4 {[%clk 0:02:15.2]} 19...
Nxh4 {[%clk 0:01:42.6]} 20. Qxh4 {[%clk 0:02:16.1]} 20... Rfd8 {[%clk
0:01:38.7]} 21. Qg3 {[%clk 0:02:04.6]} 21... Rac8 {[%clk 0:01:31.1]} 22. Qe3
{[%clk 0:02:02.1]} 22... Nb8 {[%clk 0:01:22.1]} 23. Rd2 {[%clk 0:01:55.1]} 23...
Bxd5 {[%clk 0:01:15.9]} 24. exd5 {[%clk 0:01:55.5]} 24... Qd6 {[%clk 0:01:12.5]}
25. Rfd1 {[%clk 0:01:51.4]} 25... Nd7 {[%clk 0:01:12.1]} 26. h3 {[%clk
0:01:00.2]} 26... Nb6 {[%clk 0:01:11.1]} 27. Na5 {[%clk 0:00:58.2]} 27... Nc4
{[%clk 0:01:05.1]} 28. Nxc4 {[%clk 0:00:52.7]} 28... Rxc4 {[%clk 0:01:04.4]} 29.
Qd3 {[%clk 0:00:33.2]} 29... Rdc8 {[%clk 0:01:04]} 30. Qf5 {[%clk 0:00:33.5]}
30... Re8 {[%clk 0:00:40.2]} 31. Qd3 {[%clk 0:00:32.8]} 31... Rec8 {[%clk
0:00:38.7]} 32. Qf5 {[%clk 0:00:32.1]} 32... Re8 {[%clk 0:00:38.3]} 33. Rd3
{[%clk 0:00:25.4]} 33... g6 {[%clk 0:00:35.7]} 34. Qf3 {[%clk 0:00:24.1]} 34...
e4 {[%clk 0:00:32.2]} 35. Qe3 {[%clk 0:00:14.6]} 35... Rec8 {[%clk 0:00:28]} 36.
Rd4 {[%clk 0:00:13.8]} 36... f5 {[%clk 0:00:28.7]} 37. Rxc4 {[%clk 0:00:13.5]}
37... Rxc4 {[%clk 0:00:29.6]} 38. Qa7 {[%clk 0:00:13.3]} 38... b5 {[%clk
0:00:26.6]} 39. Qa8+ {[%clk 0:00:12.2]} 39... Kg7 {[%clk 0:00:26.7]} 40. Qa7+
{[%clk 0:00:11.9]} 40... Kh6 {[%clk 0:00:23.3]} 41. Qe3+ {[%clk 0:00:11.4]}
41... f4 {[%clk 0:00:23.3]} 42. Qe2 {[%clk 0:00:11.2]} 42... Kg7 {[%clk
0:00:17.1]} 43. Rd2 {[%clk 0:00:07]} 43... h5 {[%clk 0:00:15.8]} 44. Rd1 {[%clk
0:00:07.2]} 44... Kh6 {[%clk 0:00:15.4]} 45. Qd2 {[%clk 0:00:07.5]} 45... g5
{[%clk 0:00:14.4]} 46. Qe2 {[%clk 0:00:07.4]} 46... Kg6 {[%clk 0:00:14.5]} 47.
Qc2 {[%clk 0:00:07.5]} 47... Kf5 {[%clk 0:00:14]} 48. Qe2 {[%clk 0:00:07.6]}
48... g4 {[%clk 0:00:14.5]} 49. hxg4+ {[%clk 0:00:07.6]} 49... hxg4 {[%clk
0:00:15.4]} 50. f3 {[%clk 0:00:07.4]} 50... gxf3 {[%clk 0:00:15.4]} 51. gxf3
{[%clk 0:00:07.9]} 51... Qg6+ {[%clk 0:00:15.9]} 52. Kf1 {[%clk 0:00:08.4]}
52... Qh6 {[%clk 0:00:14]} 53. Qg2 {[%clk 0:00:06.2]} 53... Rxc3 {[%clk
0:00:11.6]} 54. Qg4+ {[%clk 0:00:06.2]} 54... Ke5 {[%clk 0:00:11.8]} 55. fxe4
{[%clk 0:00:03.8]} 55... Qh1+ {[%clk 0:00:11.9]} 56. Qg1 {[%clk 0:00:03.5]}
56... Qf3+ {[%clk 0:00:10]} 57. Qf2 {[%clk 0:00:03.6]} 57... Qxd1+ {[%clk
0:00:10]} 58. Kg2 {[%clk 0:00:04.2]} 58... Rg3+ {[%clk 0:00:10.3]} 59. Kh2
{[%clk 0:00:04.3]} 59... Qh5# {[%clk 0:00:10.5]} 0-1

[Event "*** SCC Grand Prix: Titled Tuesday Blitz"]
[Site "Chess.com"]
[Date "2020.08.04"]
[Round "4"]
[White "Zurability"]
[Black "Baronessa08"]
[Result "1-0"]
[WhiteElo "2686"]
[BlackElo "2386"]
[TimeControl "180+1"]
[EndTime "14:23:50 PDT"]
[Termination "Zurability won by resignation"]

1. c4 {[%clk 0:03:00.9]} 1... c5 {[%clk 0:02:57.3]} 2. Nf3 {[%clk 0:03:00.8]}
2... Nc6 {[%clk 0:02:56.1]} 3. d4 {[%clk 0:02:58.6]} 3... cxd4 {[%clk 0:02:56]}
4. Nxd4 {[%clk 0:02:59.5]} 4... g6 {[%clk 0:02:54.4]} 5. Nc3 {[%clk 0:02:49.6]}
5... Bg7 {[%clk 0:02:53.9]} 6. Nb3 {[%clk 0:02:48.8]} 6... Nf6 {[%clk
0:02:48.2]} 7. e4 {[%clk 0:02:47.9]} 7... O-O {[%clk 0:02:44.4]} 8. Be2 {[%clk
0:02:47.9]} 8... d6 {[%clk 0:02:43.3]} 9. O-O {[%clk 0:02:47.8]} 9... Bd7 {[%clk
0:02:34.6]} 10. Be3 {[%clk 0:02:44.8]} 10... a5 {[%clk 0:02:16]} 11. c5 {[%clk
0:02:09.9]} 11... a4 {[%clk 0:02:12.5]} 12. Nd2 {[%clk 0:02:09.2]} 12... dxc5
{[%clk 0:01:57.7]} 13. Bxc5 {[%clk 0:02:06.1]} 13... b6 {[%clk 0:01:48]} 14. Be3
{[%clk 0:01:51]} 14... a3 {[%clk 0:01:44.6]} 15. bxa3 {[%clk 0:01:43.7]} 15...
Rxa3 {[%clk 0:01:23.5]} 16. Nb5 {[%clk 0:01:26.9]} 16... Ra8 {[%clk 0:01:18.6]}
17. f3 {[%clk 0:01:01.7]} 17... Ne8 {[%clk 0:01:16.7]} 18. Rb1 {[%clk
0:00:52.1]} 18... Rxa2 {[%clk 0:01:06.1]} 19. Nc4 {[%clk 0:00:52.1]} 19... Ra6
{[%clk 0:00:46.8]} 20. Kh1 {[%clk 0:00:40.3]} 20... Be6 {[%clk 0:00:37.7]} 21.
Qxd8 {[%clk 0:00:37.6]} 21... Nxd8 {[%clk 0:00:38]} 22. Nxb6 {[%clk 0:00:36.8]}
22... Ra2 {[%clk 0:00:31.1]} 23. Bc4 {[%clk 0:00:23.5]} 23... Bxc4 {[%clk
0:00:29.6]} 24. Nxc4 {[%clk 0:00:24.4]} 24... Ne6 {[%clk 0:00:23.6]} 25. Nb6
{[%clk 0:00:20.8]} 25... Nf6 {[%clk 0:00:20.6]} 26. Nc3 {[%clk 0:00:18.4]} 26...
Rc2 {[%clk 0:00:18.9]} 27. Ncd5 {[%clk 0:00:18.5]} 27... Nxd5 {[%clk 0:00:18]}
28. Nxd5 {[%clk 0:00:19.4]} 28... Re8 {[%clk 0:00:18]} 29. Rb7 {[%clk
0:00:19.3]} 29... Kf8 {[%clk 0:00:17.4]} 30. Rfb1 {[%clk 0:00:17.6]} 30... Re2
{[%clk 0:00:17.1]} 31. h3 {[%clk 0:00:14.6]} 31... Bd4 {[%clk 0:00:13.7]} 32.
Bh6+ {[%clk 0:00:12.9]} 32... Bg7 {[%clk 0:00:11.8]} 33. Bxg7+ {[%clk
0:00:08.1]} 33... Nxg7 {[%clk 0:00:10.7]} 34. Ra7 {[%clk 0:00:07.2]} 34... Nh5
{[%clk 0:00:04.7]} 35. Rbb7 {[%clk 0:00:06.6]} 35... Ng3+ {[%clk 0:00:04.7]} 36.
Kh2 {[%clk 0:00:05.6]} 36... Nf1+ {[%clk 0:00:04.7]} 37. Kg1 {[%clk 0:00:05.1]}
37... Ne3 {[%clk 0:00:04.9]} 38. Nxe7 {[%clk 0:00:04.4]} 38... Rxg2+ {[%clk
0:00:04.6]} 39. Kh1 {[%clk 0:00:04.5]} 39... Rc2 {[%clk 0:00:03.9]} 40. Nd5
{[%clk 0:00:02.6]} 40... Nxd5 {[%clk 0:00:03.3]} 41. Rxf7+ {[%clk 0:00:03]}
41... Kg8 {[%clk 0:00:03.6]} 42. Rg7+ {[%clk 0:00:03.4]} 42... Kh8 {[%clk
0:00:03.3]} 43. Rxh7+ {[%clk 0:00:03.5]} 43... Kg8 {[%clk 0:00:03.8]} 44. Rag7+
{[%clk 0:00:03.2]} 44... Kf8 {[%clk 0:00:04.1]} 45. Rxg6 {[%clk 0:00:03.7]}
45... Ne7 {[%clk 0:00:03.1]} 46. Rh8+ {[%clk 0:00:03.2]} 46... Kf7 {[%clk
0:00:03.3]} 47. Rxe8 {[%clk 0:00:03.6]} 47... Nxg6 {[%clk 0:00:02.7]} 48. Ra8
{[%clk 0:00:03.4]} 48... Nf4 {[%clk 0:00:03.1]} 49. Ra5 {[%clk 0:00:03.7]} 49...
Kf6 {[%clk 0:00:03.2]} 50. Rf5+ {[%clk 0:00:03.8]} 50... Kg6 {[%clk 0:00:02.8]}
51. Rxf4 {[%clk 0:00:04.4]} 51... Kg5 {[%clk 0:00:03.7]} 52. Rg4+ {[%clk
0:00:04.9]} 52... Kh5 {[%clk 0:00:04]} 53. Rg2 {[%clk 0:00:05.3]} 53... Rc1+
{[%clk 0:00:03.8]} 54. Kh2 {[%clk 0:00:05.3]} 54... Rf1 {[%clk 0:00:04.7]} 55.
Kg3 {[%clk 0:00:05.6]} 55... Kg5 {[%clk 0:00:04.1]} 56. h4+ {[%clk 0:00:05.9]}
56... Kf6 {[%clk 0:00:04.7]} 57. Re2 {[%clk 0:00:06.1]} 1-0

[Event "*** SCC Grand Prix: Titled Tuesday Blitz"]
[Site "Chess.com"]
[Date "2020.08.04"]
[Round "4"]
[White "GoltsevDmitry2000"]
[Black "penguingm1"]
[Result "0-1"]
[WhiteElo "2626"]
[BlackElo "2944"]
[TimeControl "180+1"]
[EndTime "14:23:51 PDT"]
[Termination "penguingm1 won by checkmate"]

1. e4 {[%clk 0:02:45.6]} 1... e5 {[%clk 0:02:57.9]} 2. Nf3 {[%clk 0:02:45.2]}
2... Nc6 {[%clk 0:02:58.2]} 3. Bb5 {[%clk 0:02:44.8]} 3... g6 {[%clk 0:02:58.4]}
4. O-O {[%clk 0:02:43.5]} 4... Bg7 {[%clk 0:02:58.8]} 5. Nc3 {[%clk 0:02:43.7]}
5... a6 {[%clk 0:02:56.5]} 6. Ba4 {[%clk 0:02:43.4]} 6... b5 {[%clk 0:02:55.8]}
7. Bb3 {[%clk 0:02:43.6]} 7... Nge7 {[%clk 0:02:28.8]} 8. Nd5 {[%clk 0:02:41.3]}
8... O-O {[%clk 0:02:25.6]} 9. c3 {[%clk 0:02:40.3]} 9... Na5 {[%clk 0:01:48.4]}
10. Nxe7+ {[%clk 0:02:29.8]} 10... Qxe7 {[%clk 0:01:45]} 11. Bc2 {[%clk
0:02:30.7]} 11... Bb7 {[%clk 0:01:41.1]} 12. d3 {[%clk 0:02:26.9]} 12... d5
{[%clk 0:01:12.5]} 13. exd5 {[%clk 0:02:25.5]} 13... Bxd5 {[%clk 0:01:13.4]} 14.
Re1 {[%clk 0:02:25.7]} 14... Rfe8 {[%clk 0:01:01.7]} 15. Bf4 {[%clk 0:02:23.5]}
15... Qd6 {[%clk 0:00:55.4]} 16. Bg3 {[%clk 0:02:16.1]} 16... c5 {[%clk
0:00:51.6]} 17. Qe2 {[%clk 0:01:14]} 17... Nc6 {[%clk 0:00:49]} 18. Rad1 {[%clk
0:01:12.6]} 18... Rad8 {[%clk 0:00:49.2]} 19. b3 {[%clk 0:01:10.8]} 19... Qd7
{[%clk 0:00:45.1]} 20. Bb1 {[%clk 0:01:06.5]} 20... h6 {[%clk 0:00:45.4]} 21.
Nd2 {[%clk 0:01:05]} 21... f5 {[%clk 0:00:44.3]} 22. f3 {[%clk 0:01:03.9]} 22...
b4 {[%clk 0:00:43.2]} 23. c4 {[%clk 0:01:01.6]} 23... Nd4 {[%clk 0:00:42.8]} 24.
Qf1 {[%clk 0:01:00.7]} 24... Bc6 {[%clk 0:00:43.4]} 25. Bf2 {[%clk 0:01:00.5]}
25... a5 {[%clk 0:00:42.7]} 26. Bxd4 {[%clk 0:00:56.3]} 26... exd4 {[%clk
0:00:41]} 27. Rxe8+ {[%clk 0:00:55.4]} 27... Rxe8 {[%clk 0:00:41.4]} 28. Re1
{[%clk 0:00:55.6]} 28... Re3 {[%clk 0:00:41.9]} 29. Re2 {[%clk 0:00:43.8]} 29...
Qe7 {[%clk 0:00:38.2]} 30. Kf2 {[%clk 0:00:41.1]} 30... h5 {[%clk 0:00:30.9]}
31. Qe1 {[%clk 0:00:27.9]} 31... Bh6 {[%clk 0:00:27.5]} 32. Nf1 {[%clk
0:00:26.1]} 32... Qh4+ {[%clk 0:00:23.2]} 33. g3 {[%clk 0:00:19]} 33... Qh3
{[%clk 0:00:14.4]} 34. Nxe3 {[%clk 0:00:13.1]} 34... dxe3+ {[%clk 0:00:14.3]}
35. Rxe3 {[%clk 0:00:09.8]} 35... Qxh2+ {[%clk 0:00:14.6]} 36. Kf1 {[%clk
0:00:10.1]} 36... Qh1+ {[%clk 0:00:04.6]} 37. Kf2 {[%clk 0:00:09.3]} 37... Qh2+
{[%clk 0:00:04.7]} 38. Kf1 {[%clk 0:00:09.7]} 38... Bg7 {[%clk 0:00:05]} 39. Qf2
{[%clk 0:00:03.4]} 39... Qh1+ {[%clk 0:00:03]} 40. Qg1 {[%clk 0:00:03.3]} 40...
Qxg1+ {[%clk 0:00:03.7]} 41. Kxg1 {[%clk 0:00:04.2]} 41... Bd4 {[%clk
0:00:04.4]} 42. Kf2 {[%clk 0:00:04.5]} 42... g5 {[%clk 0:00:05.1]} 43. Ke2
{[%clk 0:00:05]} 43... Kf7 {[%clk 0:00:03.1]} 44. Bc2 {[%clk 0:00:04.6]} 44...
h4 {[%clk 0:00:03.4]} 45. gxh4 {[%clk 0:00:03.4]} 45... gxh4 {[%clk 0:00:02.7]}
46. Kd2 {[%clk 0:00:01.3]} 46... h3 {[%clk 0:00:02.8]} 47. Re2 {[%clk
0:00:01.1]} 47... Bxf3 {[%clk 0:00:03.3]} 48. Rh2 {[%clk 0:00:01.7]} 48... Bg2
{[%clk 0:00:03.8]} 49. Bd1 {[%clk 0:00:02.1]} 49... Be5 {[%clk 0:00:04.4]} 50.
Rxh3 {[%clk 0:00:01.2]} 50... Bxh3 {[%clk 0:00:04.6]} 51. Bf3 {[%clk 0:00:02.1]}
51... Kf6 {[%clk 0:00:05]} 52. Bd5 {[%clk 0:00:03]} 52... Kg5 {[%clk 0:00:05.6]}
53. Ke3 {[%clk 0:00:03.9]} 53... f4+ {[%clk 0:00:05.8]} 54. Ke4 {[%clk
0:00:03.8]} 54... Bd4 {[%clk 0:00:06.4]} 55. Bg8 {[%clk 0:00:03.4]} 55... Bg2#
{[%clk 0:00:06.3]} 0-1

[Event "*** SCC Grand Prix: Titled Tuesday Blitz"]
[Site "Chess.com"]
[Date "2020.08.04"]
[Round "4"]
[White "Siemba"]
[Black "BogdanDeac"]
[Result "0-1"]
[WhiteElo "2401"]
[BlackElo "2770"]
[TimeControl "180+1"]
[EndTime "14:23:51 PDT"]
[Termination "BogdanDeac won on time"]

1. e4 {[%clk 0:02:59.1]} 1... c5 {[%clk 0:02:59.2]} 2. Nf3 {[%clk 0:03:00]} 2...
d6 {[%clk 0:02:59.2]} 3. d4 {[%clk 0:02:59.4]} 3... cxd4 {[%clk 0:03:00.1]} 4.
Nxd4 {[%clk 0:03:00.2]} 4... Nf6 {[%clk 0:03:00.6]} 5. Nc3 {[%clk 0:03:00.7]}
5... a6 {[%clk 0:03:01.1]} 6. Bg5 {[%clk 0:03:00.5]} 6... Nbd7 {[%clk
0:03:01.3]} 7. Qe2 {[%clk 0:02:59.9]} 7... h6 {[%clk 0:03:01.4]} 8. Bh4 {[%clk
0:03:00.4]} 8... g6 {[%clk 0:03:02]} 9. f4 {[%clk 0:03:00.9]} 9... e5 {[%clk
0:03:02.1]} 10. fxe5 {[%clk 0:03:01.8]} 10... dxe5 {[%clk 0:03:03]} 11. O-O-O
{[%clk 0:03:02]} 11... Qc7 {[%clk 0:03:03.6]} 12. Nb3 {[%clk 0:03:01.3]} 12...
b5 {[%clk 0:03:03.8]} 13. Nd5 {[%clk 0:02:57.6]} 13... Nxd5 {[%clk 0:03:02.9]}
14. exd5 {[%clk 0:02:58.5]} 14... Bd6 {[%clk 0:03:02.9]} 15. Nd2 {[%clk
0:02:58.5]} 15... f5 {[%clk 0:02:58.8]} 16. g4 {[%clk 0:02:49.7]} 16... Nc5
{[%clk 0:02:56.1]} 17. Bh3 {[%clk 0:02:21.7]} 17... f4 {[%clk 0:02:02.1]} 18.
Ne4 {[%clk 0:02:13.6]} 18... O-O {[%clk 0:02:01.1]} 19. Nxc5 {[%clk 0:02:05.5]}
19... Bxc5 {[%clk 0:01:56]} 20. d6 {[%clk 0:01:57.8]} 20... Bxd6 {[%clk
0:01:45]} 21. Qe4 {[%clk 0:01:54.2]} 21... Bc5 {[%clk 0:01:40.1]} 22. Qxg6+
{[%clk 0:01:22.1]} 22... Qg7 {[%clk 0:01:37]} 23. Qc6 {[%clk 0:01:16.2]} 23...
Be3+ {[%clk 0:01:35.4]} 24. Kb1 {[%clk 0:01:16.2]} 24... Ra7 {[%clk 0:01:24]}
25. Rhf1 {[%clk 0:00:56.6]} 25... Kh7 {[%clk 0:01:16.1]} 26. Bf2 {[%clk
0:00:48.9]} 26... Bxf2 {[%clk 0:00:49.2]} 27. Rxf2 {[%clk 0:00:49.8]} 27... Rc7
{[%clk 0:00:49.3]} 28. Qe4+ {[%clk 0:00:46.1]} 28... Kh8 {[%clk 0:00:48.7]} 29.
Re1 {[%clk 0:00:16.9]} 29... Rc5 {[%clk 0:00:42.9]} 30. Qb4 {[%clk 0:00:14.9]}
30... Rc4 {[%clk 0:00:32]} 31. Qd6 {[%clk 0:00:14.7]} 31... Rd4 {[%clk
0:00:31.9]} 32. Qc5 {[%clk 0:00:11.9]} 32... Rfd8 {[%clk 0:00:31.7]} 33. a3
{[%clk 0:00:10.7]} 33... Rd1+ {[%clk 0:00:26]} 34. Rxd1 {[%clk 0:00:10.8]} 34...
Rxd1+ {[%clk 0:00:26.6]} 35. Ka2 {[%clk 0:00:11.7]} 35... Be6+ {[%clk
0:00:26.7]} 36. b3 {[%clk 0:00:09.6]} 36... e4 {[%clk 0:00:26.9]} 37. c3 {[%clk
0:00:06.2]} 37... f3 {[%clk 0:00:26.8]} 38. Qc6 {[%clk 0:00:02.5]} 38... Qd7
{[%clk 0:00:20.6]} 39. Qa8+ {[%clk 0:00:01.4]} 39... Kg7 {[%clk 0:00:19]} 40.
Qxe4 {[%clk 0:00:01.9]} 40... Rd2+ {[%clk 0:00:19]} 41. Rxd2 {[%clk 0:00:01.4]}
41... Qxd2+ {[%clk 0:00:19.9]} 42. Ka1 {[%clk 0:00:02.3]} 42... Qxc3+ {[%clk
0:00:18.9]} 43. Kb1 {[%clk 0:00:01.2]} 43... Qxb3+ {[%clk 0:00:18.9]} 44. Kc1
{[%clk 0:00:01.5]} 44... Qxa3+ {[%clk 0:00:19.1]} 45. Kb1 {[%clk 0:00:01.1]}
45... Qb3+ {[%clk 0:00:17.6]} 46. Kc1 {[%clk 0:00:01.5]} 46... Qc3+ {[%clk
0:00:17.9]} 47. Kb1 {[%clk 0:00:01.6]} 47... Bb3 {[%clk 0:00:17.7]} 48. Qe7+
{[%clk 0:00:01.2]} 48... Kg6 {[%clk 0:00:17.2]} 49. Qe8+ {[%clk 0:00:01.4]}
49... Kg5 {[%clk 0:00:17]} 50. Qe7+ {[%clk 0:00:01.6]} 50... Kf4 {[%clk
0:00:16.7]} 51. Qf8+ {[%clk 0:00:01.3]} 51... Ke3 {[%clk 0:00:16.6]} 52. Qxh6+
{[%clk 0:00:01.7]} 52... Ke2 {[%clk 0:00:16.1]} 0-1